bitfinex-derivatives/quotes_BTCF0:USTF0_20220102
["timestamp","ask_amount","ask_price","bid_price","bid_amount"]
[1641086120142,1.26964977,47472.0,47470.0,0.06819]
[1641086120342,0.14033567,47477.0,47470.0,0.06819]
[1641086121040,0.14033567,47477.0,47470.0,0.26319]
[1641086121444,0.14033567,47477.0,47471.0,1.104]
[1641086122141,0.14033567,47477.0,47471.0,1.284]
[1641086122341,0.48551864,47483.0,47476.0,1.104]
[1641086122342,0.36625004,47483.0,47476.0,1.104]
[1641086122541,0.34518297,47483.0,47478.0,0.18]
[1641086122742,0.34518297,47483.0,47482.0,0.18]
[1641086122942,0.34518297,47483.0,47482.0,0.24367]
[1641086123345,0.40618792,47485.0,47482.0,1.36872883]
[1641086123746,0.75151375,47485.0,47482.0,1.36872883]
[1641086123946,0.34532583,47485.0,47482.0,1.36872883]
[1641086124145,0.34532583,47485.0,47484.0,0.28067134]
[1641086124745,0.80542692,47489.0,47484.0,0.28067134]
[1641086124944,1.9154,47492.0,47488.0,0.18]
[1641086125143,0.18,47493.0,47484.0,0.47667134]
[1641086125344,0.02106366,47491.0,47484.0,0.47667134]
[1641086125544,0.08792,47492.0,47484.0,0.47667134]
[1641086126047,0.02106415,47490.0,47484.0,0.47667134]
[1641086126245,0.08792,47492.0,47484.0,0.47667134]
[1641086126448,0.08792,47492.0,47484.0,0.28067134]
[1641086127047,0.08792,47492.0,47484.0,0.47467134]
[1641086127248,0.18,47489.0,47484.0,0.47467134]
[1641086127448,0.18,47485.0,47471.0,1.8457]
[1641086127648,0.18,47479.0,47471.0,1.8457]
[1641086127848,0.0210697,47477.0,47468.0,0.14033567]
[1641086128247,0.0210697,47477.0,47476.0,0.14033567]
[1641086129050,0.2050697,47477.0,47476.0,0.14033567]
[1641086129949,0.184,47477.0,47476.0,0.14033567]
[1641086130348,0.02106749,47482.0,47476.0,0.14033567]
[1641086131150,0.187,47482.0,47476.0,0.14033567]
[1641086131752,0.187,47482.0,47476.0,0.32033567]
[1641086131953,0.187,47482.0,47476.0,1.42433567]
[1641086132155,0.187,47482.0,47480.0,0.18]
[1641086132353,0.14033567,47487.0,47480.0,1.284]
[1641086132554,0.82648953,47493.0,47480.0,1.284]
[1641086133054,1.01648953,47493.0,47480.0,1.284]
[1641086133256,0.99542692,47493.0,47482.0,1.284]
[1641086133456,0.19,47493.0,47482.0,1.34714]
[1641086133655,0.19,47493.0,47482.0,0.24314]
[1641086134058,0.19,47493.0,47482.0,0.06314]
[1641086134257,0.19,47493.0,47487.0,0.14033567]
[1641086134456,0.009794,47495.0,47487.0,0.14033567]
[1641086135071,0.196794,47495.0,47487.0,0.14033567]
[1641086136471,0.009794,47495.0,47487.0,0.14033567]
[1641086136873,0.35616332,47495.0,47487.0,0.14033567]
[1641086137171,0.54216332,47495.0,47487.0,0.14033567]
[1641086137971,0.18,47494.0,47487.0,0.14033567]
[1641086139178,0.366,47494.0,47487.0,0.14033567]
[1641086139776,1.38473447,47490.0,47487.0,0.14033567]
[1641086140978,1.38473447,47490.0,47489.0,0.18]
[1641086141176,1.57373447,47490.0,47489.0,0.2010564]
[1641086141378,0.189,47490.0,47489.0,1.3050564]
[1641086141579,1.50012512,47498.0,47489.0,1.3050564]
[1641086141781,1.50012512,47498.0,47494.0,0.18]
[1641086141977,1.50012512,47498.0,47495.0,0.009794]
[1641086142278,1.50012512,47498.0,47497.0,0.14033567]
[1641086142479,0.02,47500.0,47497.0,0.14033567]
[1641086142676,0.20106055,47498.0,47492.0,0.83769535]
[1641086142877,0.18,47495.0,47492.0,0.83769535]
[1641086143077,0.02106255,47493.0,47492.0,0.83769535]
[1641086143279,0.20106255,47493.0,47492.0,0.83769535]
[1641086143877,0.20106255,47493.0,47490.0,0.14033567]
[1641086144681,0.02106255,47493.0,47490.0,0.14033567]
[1641086145083,0.21606255,47493.0,47490.0,0.14033567]
[1641086145382,0.195,47493.0,47490.0,0.14033567]
[1641086146282,0.57759728,47491.0,47490.0,0.14033567]
[1641086147083,0.76059728,47491.0,47490.0,0.14033567]
[1641086147490,0.78166095,47491.0,47490.0,0.14033567]
[1641086148083,0.20406367,47491.0,47490.0,0.14033567]
[1641086148483,0.20106367,47491.0,47490.0,0.14033567]
[1641086148683,0.02106367,47491.0,47490.0,0.14033567]
[1641086149183,0.21206367,47491.0,47490.0,0.14033567]
[1641086150586,0.02106367,47491.0,47490.0,0.14033567]
[1641086151186,0.21006367,47491.0,47490.0,0.14033567]
[1641086152488,0.02106367,47491.0,47490.0,0.14033567]
[1641086153188,0.21006367,47491.0,47490.0,0.14033567]
[1641086153588,0.189,47491.0,47490.0,0.23438567]
[1641086153988,0.76673228,47491.0,47490.0,0.23438567]
[1641086154587,0.57773228,47491.0,47490.0,0.23438567]
[1641086154789,0.02,47500.0,47490.0,0.23438567]
[1641086154790,0.34678157,47493.0,47490.0,0.23438567]
[1641086155189,0.177,47491.0,47490.0,0.23438567]
[1641086156590,0.34678157,47495.0,47490.0,0.23438567]
[1641086157190,0.53678157,47495.0,47490.0,0.23438567]
[1641086158391,0.34678157,47495.0,47490.0,0.23438567]
[1641086158791,0.34678157,47495.0,47490.0,0.14033567]
[1641086159192,0.53678157,47495.0,47490.0,0.14033567]
[1641086160702,0.34678157,47495.0,47490.0,0.14033567]
[1641086161197,0.34678157,47495.0,47490.0,0.33133567]
[1641086162698,0.34678157,47495.0,47490.0,0.14033567]
[1641086162999,0.34678157,47496.0,47490.0,0.14033567]
[1641086163300,0.34678157,47496.0,47490.0,0.33233567]
[1641086163598,0.34678157,47496.0,47490.0,0.51233567]
[1641086163799,0.34678157,47496.0,47490.0,0.33233567]
[1641086164599,1.27187092,47494.0,47492.0,0.77727998]
[1641086165201,1.27187092,47494.0,47492.0,2.07327998]
[1641086165798,1.27187092,47494.0,47492.0,0.96927998]
[1641086166498,1.27187092,47494.0,47492.0,0.77727998]
[1641086166698,0.09694877,47495.0,47493.0,0.59727998]
[1641086166699,1.27187092,47495.0,47493.0,0.59727998]
[1641086167300,1.27187092,47495.0,47493.0,0.79027998]
[1641086167502,1.27187092,47495.0,47494.0,1.104]
[1641086168500,1.27187092,47495.0,47493.0,0.59727998]
[1641086168900,1.27187092,47495.0,47494.0,0.18]
[1641086169102,1.27187092,47496.0,47494.0,0.77727998]
[1641086170207,1.27187092,47496.0,47495.0,0.18]
[1641086170804,1.27187092,47496.0,47495.0,0.32033567]
[1641086171004,1.27187092,47496.0,47495.0,0.14033567]
[1641086171205,1.27187092,47496.0,47495.0,0.33733567]
[1641086172605,1.27187092,47496.0,47495.0,0.14033567]
[1641086173207,1.27187092,47496.0,47495.0,0.33733567]
[1641086174508,1.27187092,47496.0,47495.0,0.14033567]
[1641086175312,1.27187092,47496.0,47495.0,0.33733567]
[1641086176526,1.27187092,47496.0,47495.0,0.14033567]
[1641086177226,1.27187092,47496.0,47495.0,0.33733567]
[1641086178629,1.27187092,47496.0,47495.0,0.14033567]
[1641086179330,1.27187092,47496.0,47495.0,0.33633567]
[1641086180633,1.27187092,47496.0,47495.0,0.14033567]
[1641086181231,1.27187092,47496.0,47495.0,0.33633567]
[1641086182132,2.08367387,47496.0,47495.0,0.33633567]
[1641086182334,0.81180295,47496.0,47495.0,0.51633567]
[1641086182534,0.81180295,47496.0,47495.0,0.32033567]
[1641086183245,0.81180295,47496.0,47495.0,0.51533567]
[1641086184541,0.81180295,47496.0,47495.0,0.32033567]
[1641086185236,0.81180295,47497.0,47495.0,0.51633567]
[1641086186538,0.81180295,47497.0,47495.0,0.14033567]
[1641086187038,0.57993993,47496.0,47495.0,0.14033567]
[1641086187239,0.57993993,47496.0,47495.0,0.33533567]
[1641086187441,0.64898993,47496.0,47495.0,0.33533567]
[1641086187641,0.88085295,47496.0,47495.0,0.195]
[1641086188140,0.009794,47495.0,47488.0,0.59727998]
[1641086188340,0.18,47489.0,47488.0,0.59727998]
[1641086188549,0.20206544,47489.0,47487.0,0.20880207]
[1641086188741,0.010794,47488.0,47484.0,1.197056]
[1641086188941,0.32033567,47485.0,47484.0,1.197056]
[1641086189140,0.38555567,47485.0,47482.0,0.59778231]
[1641086189340,0.18,47483.0,47482.0,0.59778231]
[1641086190042,0.25756048,47484.0,47479.0,1.197056]
[1641086190243,0.35450925,47484.0,47479.0,1.197056]
[1641086190441,0.18,47480.0,47468.0,1.197056]
[1641086190941,0.10674277,47484.0,47468.0,1.197056]
[1641086191145,0.18,47482.0,47468.0,1.197056]
[1641086191342,1.15649808,47473.0,47471.0,1.50239167]
[1641086191542,1.24982808,47473.0,47471.0,1.50239167]
[1641086192343,0.09333,47473.0,47471.0,1.50239167]
[1641086192542,0.09333,47473.0,47471.0,1.33739167]
[1641086192743,1.15649808,47474.0,47471.0,1.33739167]
[1641086192944,0.09694877,47472.0,47471.0,0.14033567]
[1641086193444,0.09694877,47472.0,47471.0,0.34730503]
[1641086193645,0.34721057,47472.0,47471.0,0.34730503]
[1641086193843,0.34721057,47472.0,47471.0,1.65816786]
[1641086194444,0.34721057,47472.0,47471.0,1.46316786]
[1641086195247,0.34721057,47472.0,47471.0,0.33133567]
[1641086195446,0.34721057,47473.0,47471.0,0.33133567]
[1641086196045,0.09694877,47473.0,47471.0,0.33133567]
[1641086196248,1.25344685,47473.0,47471.0,0.33133567]
[1641086196748,1.25344685,47473.0,47471.0,0.14033567]
[1641086197356,1.25344685,47473.0,47471.0,0.32833567]
[1641086197747,0.80977465,47472.0,47471.0,0.32833567]
[1641086198548,0.80977465,47472.0,47471.0,0.32033567]
[1641086198752,1.15649808,47474.0,47471.0,0.34139959]
[1641086198949,1.15649808,47475.0,47471.0,0.4458591]
[1641086199148,1.15649808,47475.0,47474.0,0.18]
[1641086199559,0.34735191,47473.0,47472.0,1.31693357]
[1641086200452,0.41822191,47473.0,47472.0,1.31693357]
[1641086201051,0.07087,47473.0,47472.0,1.31693357]
[1641086201255,0.80778985,47473.0,47472.0,0.151]
[1641086201450,0.81758385,47473.0,47472.0,0.151]
[1641086201650,0.83865633,47473.0,47470.0,0.42694164]
[1641086201850,0.25973648,47473.0,47470.0,0.42694164]
[1641086202049,0.35668525,47473.0,47470.0,0.42694164]
[1641086202250,0.35668525,47473.0,47470.0,0.59866261]
[1641086202251,0.001,47471.0,47470.0,0.59866261]
[1641086202651,0.08376745,47471.0,47470.0,0.59866261]
[1641086203051,0.08276745,47471.0,47470.0,0.59866261]
[1641086203252,0.26876745,47471.0,47470.0,0.59866261]
[1641086203451,0.186,47471.0,47470.0,0.59866261]
[1641086203651,0.186,47471.0,47462.0,0.32033567]
[1641086203856,0.186,47471.0,47462.0,0.14033567]
[1641086203857,0.28294877,47471.0,47462.0,0.14033567]
[1641086204654,0.09554014,47470.0,47462.0,0.14033567]
[1641086205156,1.15485372,47466.0,47462.0,0.14033567]
[1641086205756,0.14033567,47468.0,47462.0,0.14033567]
[1641086206660,0.14033567,47468.0,47465.0,0.18]
[1641086206858,0.185,47470.0,47466.0,0.02106681]
[1641086207259,0.19,47468.0,47466.0,0.02106681]
[1641086208662,0.15012967,47473.0,47466.0,0.02106681]
[1641086209262,0.34012967,47473.0,47470.0,0.18]
[1641086209461,0.34012967,47473.0,47467.0,0.18]
[1641086210465,0.19,47473.0,47472.0,0.02106293]
[1641086210664,0.14033567,47485.0,47472.0,0.09845293]
[1641086210866,0.14033567,47485.0,47472.0,0.27845293]
[1641086211067,0.14033567,47485.0,47473.0,0.009794]
[1641086211366,0.32933567,47485.0,47478.0,0.18]
[1641086211569,0.32933567,47485.0,47478.0,0.20106154]
[1641086211767,0.32933567,47485.0,47483.0,0.18]
[1641086211967,0.189,47485.0,47483.0,0.24941]
[1641086212266,0.189,47485.0,47484.0,0.009794]
[1641086212467,0.34510581,47487.0,47484.0,0.03085137]
[1641086212668,0.34510581,47487.0,47486.0,0.18]
[1641086212869,0.57517635,47488.0,47486.0,0.18]
[1641086213067,0.34510581,47490.0,47486.0,0.14033567]
[1641086213367,0.34510581,47490.0,47486.0,0.32433567]
[1641086214269,0.57517635,47492.0,47486.0,0.32433567]
[1641086214467,0.14033567,47496.0,47486.0,0.32433567]
[1641086214668,0.14033567,47496.0,47491.0,0.18]
[1641086214868,0.36510581,47500.0,47495.0,0.18]
[1641086215074,0.36510581,47500.0,47499.0,0.14033567]
[1641086216171,0.02,47500.0,47499.0,0.14033567]
[1641086216781,0.02,47500.0,47499.0,0.161387]
[1641086217373,0.195,47500.0,47499.0,0.333387]
[1641086217985,0.195,47500.0,47499.0,0.513387]
[1641086218185,0.195,47500.0,47499.0,0.333387]
[1641086219286,0.38,47500.0,47499.0,0.515387]
[1641086221285,0.563,47500.0,47499.0,0.696387]
[1641086222384,0.563,47500.0,47499.0,0.697387]
[1641086222984,0.02,47500.0,47499.0,0.162387]
[1641086225287,0.201,47500.0,47499.0,0.341387]
[1641086226387,0.201,47500.0,47499.0,0.340387]
[1641086226588,0.02,47500.0,47499.0,0.161387]
[1641086227194,0.201,47500.0,47499.0,0.341387]
[1641086227394,0.30990447,47500.0,47499.0,0.341387]
[1641086227594,0.30990447,47500.0,47499.0,0.32033567]
[1641086227795,0.48990447,47500.0,47499.0,0.32033567]
[1641086227994,0.48990447,47500.0,47499.0,0.18]
[1641086228594,0.30990447,47500.0,47493.0,0.83479456]
[1641086228794,0.18,47494.0,47493.0,0.83479456]
[1641086228996,0.24741,47494.0,47493.0,0.83479456]
[1641086229194,0.43441,47494.0,47493.0,0.83479456]
[1641086229395,0.43441,47494.0,47490.0,0.14033567]
[1641086229598,0.18,47491.0,47476.0,1.98813567]
[1641086229795,0.18,47490.0,47477.0,0.18]
[1641086229996,0.18,47487.0,47476.0,1.98813567]
[1641086230197,0.18,47487.0,47476.0,0.14033567]
[1641086231200,0.365,47487.0,47476.0,0.14033567]
[1641086231399,0.365,47487.0,47481.0,0.14033567]
[1641086231600,0.18,47482.0,47481.0,0.14033567]
[1641086232900,0.27459,47482.0,47481.0,0.14033567]
[1641086233101,0.09459,47482.0,47481.0,0.14033567]
[1641086233402,0.28059,47482.0,47481.0,0.14033567]
[1641086234605,0.09459,47482.0,47481.0,0.14033567]
[1641086234804,0.18,47493.0,47481.0,0.14033567]
[1641086235203,0.191,47482.0,47481.0,0.14033567]
[1641086236004,0.26415,47482.0,47481.0,0.14033567]
[1641086236607,0.07315,47482.0,47481.0,0.14033567]
[1641086237208,0.25815,47482.0,47481.0,0.14033567]
[1641086238703,0.07315,47482.0,47481.0,0.14033567]
[1641086238904,0.53103628,47489.0,47481.0,0.14033567]
[1641086239304,0.185,47482.0,47481.0,0.14033567]
[1641086240504,0.35103628,47489.0,47481.0,0.14033567]
[1641086240704,0.53103628,47490.0,47481.0,0.14033567]
[1641086241206,0.71603628,47490.0,47481.0,0.14033567]
[1641086241405,0.35103628,47489.0,47481.0,0.14033567]
[1641086242207,0.365,47490.0,47481.0,0.14033567]
[1641086242208,0.71603628,47490.0,47481.0,0.14033567]
[1641086242705,0.53103628,47490.0,47481.0,0.14033567]
[1641086242906,0.35103628,47490.0,47481.0,0.14033567]
[1641086243106,0.35103628,47489.0,47481.0,0.14033567]
[1641086243306,0.53103628,47489.0,47481.0,0.14033567]
[1641086243506,0.35103628,47489.0,47481.0,0.14033567]
[1641086245006,0.53103628,47489.0,47481.0,0.14033567]
[1641086245207,0.71603628,47489.0,47481.0,0.14033567]
[1641086245909,0.35103628,47487.0,47481.0,0.14033567]
[1641086246111,0.05805011,47486.0,47481.0,0.14033567]
[1641086247112,0.35103628,47487.0,47481.0,0.14033567]
[1641086247316,0.185,47486.0,47481.0,0.14033567]
[1641086247513,0.185,47486.0,47478.0,0.009794]
[1641086248515,0.14033567,47487.0,47478.0,0.009794]
[1641086249217,0.32433567,47487.0,47478.0,0.009794]
[1641086249420,0.67537195,47487.0,47478.0,0.009794]
[1641086250318,0.32433567,47487.0,47478.0,0.009794]
[1641086250521,0.58506047,47480.0,47478.0,0.009794]
[1641086251223,0.76906047,47480.0,47478.0,0.009794]
[1641086252523,0.58506047,47480.0,47478.0,0.009794]
[1641086252721,0.07624,47480.0,47477.0,0.02106188]
[1641086252920,0.18,47478.0,47476.0,0.14033567]
[1641086253320,0.76506047,47478.0,47476.0,0.14033567]
[1641086253722,0.14033567,47477.0,47470.0,0.83479456]
[1641086253922,0.32033567,47477.0,47470.0,0.83479456]
[1641086254122,0.18,47471.0,47470.0,0.83479456]
[1641086254522,0.18,47471.0,47468.0,1.19256563]
[1641086254824,0.18,47471.0,47466.0,0.83479456]
[1641086255025,0.18,47470.0,47466.0,0.83479456]
[1641086255323,0.18,47467.0,47466.0,0.83479456]
[1641086255522,0.18,47467.0,47464.0,0.83479456]
[1641086256324,0.5969956,47470.0,47464.0,0.83479456]
[1641086256523,0.5969956,47470.0,47461.0,0.83479456]
[1641086256524,0.3502956,47468.0,47461.0,0.83479456]
[1641086256924,0.3502956,47468.0,47462.0,0.01197122]
[1641086257327,0.5342956,47468.0,47462.0,0.01197122]
[1641086257625,0.5342956,47468.0,47462.0,0.19197122]
[1641086257825,0.184,47468.0,47463.0,0.83479456]
[1641086258026,0.184,47468.0,47463.0,0.84676578]
[1641086258324,0.184,47468.0,47464.0,0.01197122]
[1641086258524,0.3502956,47470.0,47464.0,0.01197122]
[1641086258740,0.18,47471.0,47464.0,0.01197122]
[1641086259124,0.18,47471.0,47461.0,0.01197122]
[1641086259324,0.365,47471.0,47461.0,0.01197122]
[1641086260525,0.18,47471.0,47461.0,0.01197122]
[1641086261326,0.365,47471.0,47461.0,0.01197122]
[1641086261528,0.185,47471.0,47461.0,0.19197122]
[1641086261930,0.185,47471.0,47462.0,0.01197122]
[1641086262128,0.185,47471.0,47462.0,0.09800122]
[1641086262731,0.14033567,47472.0,47462.0,0.09800122]
[1641086262934,0.14033567,47472.0,47463.0,0.01197122]
[1641086263331,0.32533567,47472.0,47463.0,0.01197122]
[1641086263941,0.32533567,47472.0,47462.0,0.01197122]
[1641086264440,0.32533567,47472.0,47461.0,0.18]
[1641086264441,0.32533567,47472.0,47464.0,0.01197122]
[1641086264639,0.14033567,47472.0,47463.0,0.01197122]
[1641086264839,0.14033567,47472.0,47465.0,0.18]
[1641086265040,0.49063127,47477.0,47465.0,0.2494]
[1641086265241,0.185,47472.0,47465.0,0.2494]
[1641086265443,0.185,47472.0,47466.0,0.01197074]
[1641086265941,0.185,47472.0,47469.0,0.14033567]
[1641086266646,0.14033567,47477.0,47469.0,0.14033567]
[1641086267246,0.32633567,47477.0,47469.0,0.14033567]
[1641086268348,0.67663127,47477.0,47469.0,0.14033567]
[1641086268548,0.49063127,47477.0,47471.0,0.18]
[1641086268750,0.49063127,47477.0,47472.0,0.18]
[1641086269249,0.32633567,47477.0,47472.0,0.18]
[1641086270552,0.14033567,47477.0,47472.0,0.18]
[1641086271349,0.32733567,47477.0,47469.0,0.22802567]
[1641086271551,0.32733567,47477.0,47473.0,0.18]
[1641086272550,0.14033567,47477.0,47469.0,0.22802567]
[1641086272752,0.14033567,47477.0,47473.0,0.18]
[1641086273452,0.32833567,47477.0,47474.0,0.18]
[1641086274552,0.14033567,47477.0,47474.0,0.18]
[1641086275253,0.32633567,47477.0,47474.0,0.18]
[1641086276053,0.186,47477.0,47474.0,0.18]
[1641086276253,0.186,47477.0,47475.0,0.18]
[1641086276454,0.3502956,47480.0,47475.0,0.18]
[1641086276854,0.3502956,47481.0,47475.0,0.18]
[1641086277253,0.186,47480.0,47475.0,0.18]
[1641086278258,0.186,47480.0,47477.0,0.14033567]
[1641086278555,0.3502956,47483.0,47477.0,0.14033567]
[1641086279355,0.5372956,47483.0,47477.0,0.14033567]
[1641086279555,0.187,47483.0,47477.0,0.14033567]
[1641086281155,0.187,47483.0,47479.0,0.83479456]
[1641086281156,1.39546469,47482.0,47479.0,0.83479456]
[1641086281756,1.28713303,47481.0,47478.0,0.83479456]
[1641086282657,0.10833166,47482.0,47477.0,0.14033567]
[1641086282658,0.82129903,47480.0,47477.0,0.14033567]
[1641086283461,0.5867597,47479.0,47477.0,0.14033567]
[1641086285258,0.7727597,47479.0,47477.0,0.14033567]
[1641086286663,0.5867597,47479.0,47477.0,0.14033567]
[1641086287264,0.7757597,47479.0,47477.0,0.14033567]
[1641086288264,0.189,47479.0,47477.0,0.14033567]
[1641086288463,0.189,47479.0,47469.0,1.35396679]
[1641086288464,0.92942176,47478.0,47469.0,0.16140116]
[1641086289264,1.11742176,47478.0,47469.0,0.16140116]
[1641086289465,0.35189447,47474.0,47469.0,0.14033567]
[1641086290266,0.35189447,47473.0,47468.0,0.14033567]
[1641086290466,0.35189447,47473.0,47466.0,0.83479456]
[1641086291169,0.35189447,47472.0,47466.0,0.83479456]
[1641086292166,0.35189447,47471.0,47465.0,0.83479456]
[1641086293369,0.54089447,47471.0,47465.0,0.83479456]
[1641086293567,0.189,47471.0,47466.0,0.83479456]
[1641086294768,0.35189447,47472.0,47466.0,0.83479456]
[1641086295267,0.54089447,47472.0,47466.0,0.83479456]
[1641086296768,0.35189447,47472.0,47466.0,0.83479456]
[1641086297269,0.54089447,47472.0,47466.0,0.83479456]
[1641086298676,0.35189447,47472.0,47466.0,0.83479456]
[1641086299373,0.54089447,47472.0,47466.0,0.83479456]
[1641086300474,0.54089447,47472.0,47467.0,0.18]
[1641086300676,0.35189447,47472.0,47467.0,0.18]
[1641086301075,0.35189447,47472.0,47468.0,0.14033567]
[1641086301275,0.54189447,47472.0,47468.0,0.14033567]
[1641086301476,0.19,47472.0,47468.0,0.14033567]
[1641086302380,0.19,47472.0,47468.0,0.16140166]
[1641086302777,0.35189447,47473.0,47468.0,0.16140166]
[1641086302977,0.49223014,47474.0,47468.0,0.16140166]
[1641086303178,0.49223014,47474.0,47468.0,0.99619622]
[1641086303482,0.187,47473.0,47468.0,0.99619622]
[1641086303878,0.187,47473.0,47468.0,0.16140166]
[1641086304181,0.58649078,47470.0,47469.0,1.31182219]
[1641086304980,0.58649078,47469.0,47468.0,0.14033567]
[1641086305681,0.27944,47470.0,47468.0,0.14033567]
[1641086305880,0.10819942,47469.0,47468.0,0.14033567]
[1641086306482,0.10819942,47469.0,47468.0,0.97850427]
[1641086307283,0.29519942,47469.0,47468.0,0.14033567]
[1641086307481,1.47114297,47469.0,47468.0,0.14033567]
[1641086308084,1.36294355,47469.0,47468.0,0.14033567]
[1641086308785,1.28414297,47469.0,47468.0,0.14033567]
[1641086309287,1.47114297,47469.0,47468.0,0.14033567]
[1641086310387,1.47114297,47469.0,47468.0,0.16140137]
[1641086310686,0.93223281,47469.0,47468.0,0.16140137]
[1641086310886,0.93223281,47469.0,47468.0,0.1733714]
[1641086311287,1.10023281,47469.0,47468.0,0.2336414]
[1641086311891,0.99203339,47469.0,47468.0,0.2336414]
[1641086312090,0.52143053,47469.0,47468.0,0.2336414]
[1641086312695,0.35343053,47470.0,47468.0,0.2336414]
[1641086313295,0.50343053,47470.0,47468.0,0.2336414]
[1641086313496,0.50343053,47470.0,47468.0,0.22167137]
[1641086313994,0.15,47470.0,47468.0,0.0813357]
[1641086314194,0.15,47470.0,47469.0,0.01196971]
[1641086314399,0.15,47470.0,47468.0,0.0210657]
[1641086314596,0.35343053,47471.0,47468.0,0.0210657]
[1641086314894,0.94248142,47473.0,47468.0,0.0210657]
[1641086315103,0.35343053,47473.0,47472.0,0.14033567]
[1641086316302,0.58905089,47474.0,47472.0,0.97794096]
[1641086316503,0.58905089,47473.0,47472.0,0.97794096]
[1641086317305,0.77605089,47473.0,47472.0,0.97794096]
[1641086317505,0.187,47473.0,47472.0,0.97794096]
[1641086317705,0.29520767,47473.0,47472.0,0.14033567]
[1641086318606,0.10820767,47473.0,47472.0,0.14033567]
[1641086319408,0.29520767,47473.0,47472.0,0.14033567]
[1641086319610,0.187,47473.0,47472.0,0.14033567]
[1641086319809,1.01131445,47473.0,47472.0,0.14033567]
[1641086320510,1.11952212,47473.0,47472.0,0.14033567]
[1641086320710,0.93252212,47473.0,47472.0,0.14033567]
[1641086321513,1.12052212,47473.0,47472.0,0.14033567]
[1641086322214,0.77657108,47473.0,47472.0,0.14033567]
[1641086322712,0.58857108,47473.0,47472.0,0.14033567]
[1641086322911,0.10811475,47473.0,47472.0,0.14033567]
[1641086323114,0.9324292,47473.0,47472.0,0.14033567]
[1641086323312,1.1204292,47473.0,47472.0,0.14033567]
[1641086323710,1.1204292,47473.0,47470.0,0.83760529]
[1641086323912,1.1204292,47473.0,47471.0,0.83760529]
[1641086324317,1.01231445,47473.0,47471.0,0.83760529]
[1641086324515,0.58819778,47472.0,47471.0,0.83760529]
[1641086325116,0.10785622,47472.0,47469.0,2.03422187]
[1641086325316,0.29885622,47472.0,47471.0,0.14033567]
[1641086326118,1.47479977,47472.0,47471.0,0.14033567]
[1641086326720,1.28379977,47472.0,47471.0,0.14033567]
[1641086326920,0.10785622,47472.0,47471.0,0.14033567]
[1641086327429,0.29685622,47472.0,47471.0,0.14033567]
[1641086328720,0.10785622,47472.0,47471.0,0.14033567]
[1641086328920,0.10785622,47472.0,47471.0,0.97794096]
[1641086329321,0.29685622,47472.0,47471.0,0.97794096]
[1641086330423,0.189,47472.0,47471.0,0.97794096]
[1641086330621,1.28713303,47474.0,47471.0,0.97794096]
[1641086330822,0.10785622,47472.0,47471.0,0.97794096]
[1641086331225,1.28713303,47474.0,47471.0,0.97794096]
[1641086331422,0.189,47472.0,47471.0,0.97794096]
[1641086332723,1.28713303,47473.0,47471.0,0.14033567]
[1641086332925,0.10785622,47477.0,47471.0,0.14033567]
[1641086333125,0.18,47478.0,47471.0,0.14033567]
[1641086333327,0.188,47477.0,47471.0,0.14033567]
[1641086334026,1.29019963,47473.0,47471.0,0.14033567]
[1641086334726,1.17209097,47473.0,47471.0,0.14033567]
[1641086335328,1.36109097,47473.0,47471.0,0.14033567]
[1641086335529,0.82081445,47472.0,47471.0,0.14033567]
[1641086336130,0.92880805,47472.0,47471.0,0.14033567]
[1641086336532,0.92880805,47472.0,47468.0,0.14033567]
[1641086337332,0.35150374,47469.0,47468.0,0.14033567]
[1641086339533,0.53950374,47469.0,47468.0,0.14033567]
[1641086340735,0.35150374,47469.0,47468.0,0.14033567]
[1641086341437,0.54450374,47469.0,47468.0,0.14033567]
[1641086341836,0.193,47469.0,47468.0,0.14033567]
[1641086342640,0.35150374,47471.0,47468.0,0.14033567]
[1641086342838,0.35150374,47472.0,47468.0,0.19948567]
[1641086343039,0.35150374,47472.0,47468.0,1.39682915]
[1641086343439,0.53750374,47472.0,47468.0,1.39682915]
[1641086343642,0.53750374,47472.0,47470.0,0.83744946]
[1641086344840,0.35150374,47472.0,47470.0,0.83744946]
[1641086345440,0.53750374,47472.0,47470.0,0.83744946]
[1641086346846,0.35150374,47472.0,47470.0,0.83744946]
[1641086347444,0.185,47472.0,47470.0,0.83744946]
[1641086347645,0.77083956,47472.0,47468.0,0.97778513]
[1641086348245,0.35163084,47470.0,47468.0,0.97778513]
[1641086349463,0.53663084,47470.0,47468.0,0.97778513]
[1641086350064,0.35163084,47469.0,47468.0,0.97778513]
[1641086351264,0.35163084,47470.0,47468.0,0.97778513]
[1641086351464,0.187,47469.0,47468.0,0.97778513]
[1641086351863,0.53863084,47469.0,47468.0,0.97778513]
[1641086352663,0.53863084,47469.0,47468.0,0.32033567]
[1641086352964,0.35163084,47471.0,47469.0,1.104]
[1641086353164,1.17209097,47476.0,47470.0,1.13485592]
[1641086353363,1.17209097,47476.0,47475.0,2.084]
[1641086353665,1.17209097,47476.0,47475.0,0.94033567]
[1641086353863,1.17209097,47476.0,47475.0,0.14033567]
[1641086354267,0.58918959,47476.0,47475.0,0.14033567]
[1641086354764,1.17209097,47480.0,47475.0,0.14033567]
[1641086354965,1.17209097,47480.0,47477.0,0.18]
[1641086355165,1.17209097,47483.0,47477.0,0.18]
[1641086355465,0.17,47480.0,47477.0,0.18]
[1641086356968,1.17209097,47485.0,47477.0,0.18]
[1641086357468,1.35809097,47485.0,47477.0,0.18]
[1641086357767,1.35809097,47485.0,47481.0,0.14033567]
[1641086358969,0.186,47485.0,47481.0,0.14033567]
[1641086359171,1.39187279,47484.0,47481.0,0.14033567]
[1641086360469,1.29019963,47484.0,47481.0,0.14033567]
[1641086360670,0.373,47485.0,47481.0,0.14033567]
[1641086360869,2.91006693,47487.0,47481.0,0.14033567]
[1641086361371,0.14033567,47488.0,47481.0,0.14033567]
[1641086361576,0.186,47487.0,47482.0,0.20105959]
[1641086361772,0.186,47487.0,47486.0,0.14033567]
[1641086361971,1.00979945,47487.0,47486.0,0.14033567]
[1641086362873,1.17729515,47490.0,47486.0,0.14033567]
[1641086363072,0.58861963,47490.0,47486.0,0.14033567]
[1641086363474,0.77861963,47490.0,47486.0,0.14033567]
[1641086363874,0.95861963,47490.0,47486.0,0.14033567]
[1641086364073,0.35323745,47489.0,47486.0,0.14033567]
[1641086364275,0.41491745,47489.0,47486.0,0.14033567]
[1641086364774,0.06168,47489.0,47486.0,0.14033567]
[1641086364977,0.82379945,47488.0,47486.0,0.14033567]
[1641086365176,0.58861963,47487.0,47486.0,0.14033567]